[Event "Croatian-ch Youth U13 2022"]
[Site "Trogir"]
[Date "2022.06.27"]
[Round "9.3"]
[White "Petrus, Adrian"]
[Black "Horvat, Ivan"]
[Result "1/2-1/2"]
[ECO "B51"]
[WhiteElo "1526"]
[BlackElo "1290"]
[Annotator "NA RC"]
[PlyCount "86"]
[EventDate "2022.06.22"]
[EventType "swiss"]
[EventCountry "CRO"]
[SourceTitle "playchess.com"]
[Source "ChessBase"]
[SourceQuality "1"]
[TimeControl "5400+30"]

1. e4 {[%emt 0:00:03]} c5 {[%emt 0:00:07]} 2. Nf3 {[%emt 0:00:06]} d6 {[%emt 0:00:09]} 3. Bb5+ {[%emt 0:00:00]} Nd7 {[%emt 0:00:08]} 4. c4 {[%emt 0:00:51]} a6 {[%emt 0:00:47]} 5. Ba4 {[%emt 0:00:12]} Ngf6 {[%emt 0:00:50]} 6. Nc3 {[%emt 0:00:34]} e6 {[%emt 0:01:00]} 7. d3 {[%emt 0:01:13]} Be7 {[%emt 0:00:52]} 8. O-O {[%emt 0:00:48]} O-O {[%emt 0:00:17]} 9. Bc2 {[%emt 0:02:49]} Rb8 {[%emt 0:02:06]} 10. a4 {[%emt 0:03:14]} b6 {[%emt 0:02:20]} 11. h3 {[%emt 0:04:01]} Re8 {[%emt 0:02:41]} 12. Be3 {[%emt 0:02:41]} Nf8 {[%emt 0:00:47]} 13. Nh2 {[%emt 0:00:54]} Qc7 {[%emt 0:06:08]} 14. f4 {[%emt 0:05:25]} Bd7 {[%emt 0:02:20]} 15. Qe2 {[%emt 0:03:35]} b5 {[%emt 0:02:14]} 16. axb5 {[%emt 0:00:35]} axb5 {[%emt 0:00:57]} 17. Nxb5 {[%emt 0:00:37]} Bxb5 {[%emt 0:00:23]} 18. cxb5 {[%emt 0:00:05]} Rxb5 {[%emt 0:00:26]} 19. Ba4 {[%emt 0:00:05]} Qb7 {[%emt 0:02:03]} 20. Bxb5 {[%emt 0:01:11]} Qxb5 {[%emt 0:00:02]} 21. Qc2 {[%emt 0:00:47]} Rb8 {[%emt 0:01:04]} 22. Rfb1 {[%emt 0:00:14]} h6 {[%emt 0:07:53]} 23. Nf3 {[%emt 0:00:51]} N8d7 {[%emt 0:08:28]} 24. Bd2 {[%emt 0:03:21]} Qb3 {[%emt 0:09:11]} 25. Qxb3 {[%emt 0:01:07]} Rxb3 {[%emt 0:00:21]} 26. Ra8+ {[%emt 0:01:04]} Kh7 {[%emt 0:00:13]} 27. Bc3 {[%emt 0:01:12]} c4 {[%emt 0:03:00]} 28. Nd2 {[%emt 0:00:38]} Rb7 {[%emt 0:00:56]} 29. dxc4 {[%emt 0:00:28]} Nc5 {[%emt 0:00:30]} 30. e5 {[%emt 0:01:11]} dxe5 {[%emt 0:00:47]} 31. Bxe5 {[%emt 0:00:15]} Nd3 {[%emt 0:00:39]} 32. Nf3 {[%emt 0:02:07]} Nxe5 {[%emt 0:02:19]} 33. Nxe5 {[%emt 0:01:18]} Nh5 {[%emt 0:05:50]} 34. Nd3 {[%emt 0:01:40]} Rd7 {[%emt 0:02:15]} 35. Ne1 {[%emt 0:02:00]} Nxf4 {[%emt 0:00:58]} 36. b4 {[%emt 0:00:18]} Nh5 {[%emt 0:02:15]} 37. Ra3 {[%emt 0:02:34]} Rb7 {[%emt 0:04:49]} 38. Rab3 {[%emt 0:01:26]} Rd7 {[%emt 0:04:38]} 39. b5 {[%emt 0:01:20]} Rd2 {[%emt 0:01:11]} 40. R3b2 {[%emt 0:00:33]} Bc5+ {[%emt 0:00:14]} 41. Kh2 {[%emt 0:03:59]} Bd6+ {[%emt 0:00:17]} 42. Kh1 {[%emt 0:00:11]} Ng3+ {[%emt 0:00:34]} 43. Kh2 {[%emt 0:01:10]} Ne2+ {[%emt 0:00:14]} 1/2-1/2

[Event "Croatian-ch Youth U13 2022"]
[Site "Trogir"]
[Date "2022.06.27"]
[Round "9.4"]
[White "Radalj, Niko"]
[Black "Kucelj, Kevin"]
[Result "0-1"]
[ECO "B90"]
[WhiteElo "1179"]
[BlackElo "1398"]
[Annotator "NA RC"]
[PlyCount "30"]
[EventDate "2022.06.22"]
[EventType "swiss"]
[EventCountry "CRO"]
[SourceTitle "playchess.com"]
[Source "ChessBase"]
[SourceQuality "1"]
[TimeControl "5400+30"]

1. e4 {[%emt 0:00:04]} c5 {[%emt 0:00:02]} 2. Nf3 {[%emt 0:00:07]} d6 {[%emt 0:00:02]} 3. d4 {[%emt 0:00:05]} cxd4 {[%emt 0:00:02]} 4. Nxd4 {[%emt 0:00:04]} Nf6 {[%emt 0:00:03]} 5. Nc3 {[%emt 0:00:06]} a6 {[%emt 0:00:18]} 6. h3 {[%emt 0:00:08]} e5 {[%emt 0:08:04]} 7. Nde2 {[%emt 0:00:08]} Nc6 {[%emt 0:05:28]} 8. Bg5 {[%emt 0:00:53]} Be7 {[%emt 0:00:49]} 9. Qd2 {[%emt 0:06:37]} h6 {[%emt 0:03:20]} 10. Bxf6 {[%emt 0:03:04]} Bxf6 {[%emt 0:00:17]} 11. f4 {[%emt 0:00:26]} exf4 {[%emt 0:02:19]} 12. Qxf4 {[%emt 0:00:32]} Bg5 {[%emt 0:00:58]} 13. Qh2 {[%emt 0:02:42]} Nb4 {[%emt 0:02:34]} 14. Nd4 {[%emt 0:05:28]} Qf6 {[%emt 0:00:44]} 15. Nce2 {[%emt 0:00:53]} Be3 {[%emt 0:01:08]} 0-1

[Event "Croatian-ch Youth U13 2022"]
[Site "Trogir"]
[Date "2022.06.27"]
[Round "9.6"]
[White "Mandaric, Duje"]
[Black "Kresic, Vid"]
[Result "1/2-1/2"]
[ECO "C54"]
[WhiteElo "1333"]
[BlackElo "1459"]
[Annotator "NA RC"]
[PlyCount "119"]
[EventDate "2022.06.22"]
[EventType "swiss"]
[EventCountry "CRO"]
[SourceTitle "playchess.com"]
[Source "ChessBase"]
[SourceQuality "1"]
[TimeControl "5400+30"]

1. e4 {[%emt 0:00:04]} e5 {[%emt 0:00:09]} 2. Nf3 {[%emt 0:00:09]} Nc6 {[%emt 0:00:08]} 3. Bc4 {[%emt 0:00:18]} Bc5 {[%emt 0:00:15]} 4. c3 {[%emt 0:00:17]} Nf6 {[%emt 0:00:22]} 5. d3 {[%emt 0:00:19]} d5 {[%emt 0:00:59]} 6. exd5 {[%emt 0:00:39]} Nxd5 {[%emt 0:00:09]} 7. O-O {[%emt 0:00:43]} Nb6 {[%emt 0:00:06]} 8. Bb3 {[%emt 0:01:24]} Bd6 {[%emt 0:00:39]} 9. Re1 {[%emt 0:01:17]} O-O {[%emt 0:01:06]} 10. Nbd2 {[%emt 0:01:13]} Bg4 {[%emt 0:01:03]} 11. Nf1 {[%emt 0:00:31]} h6 {[%emt 0:09:07]} 12. h3 {[%emt 0:02:37]} Bh5 {[%emt 0:01:37]} 13. Ng3 {[%emt 0:00:13]} Bg6 {[%emt 0:00:40]} 14. Be3 {[%emt 0:02:57]} Kh8 {[%emt 0:02:02]} 15. Bxb6 {[%emt 0:03:15]} axb6 {[%emt 0:00:39]} 16. d4 {[%emt 0:00:40]} exd4 {[%emt 0:00:30]} 17. cxd4 {[%emt 0:00:45]} Bxg3 {[%emt 0:03:53]} 18. fxg3 {[%emt 0:01:41]} Qd6 {[%emt 0:02:14]} 19. Ne5 {[%emt 0:02:01]} Qxd4+ {[%emt 0:01:20]} 20. Qxd4 {[%emt 0:01:25]} Nxd4 {[%emt 0:00:12]} 21. Rad1 {[%emt 0:03:11]} Nxb3 {[%emt 0:01:08]} 22. axb3 {[%emt 0:00:15]} Rad8 {[%emt 0:03:27]} 23. b4 {[%emt 0:02:40]} Rxd1 {[%emt 0:03:31]} 24. Rxd1 {[%emt 0:00:18]} Bf5 {[%emt 0:00:08]} 25. Rf1 {[%emt 0:00:28]} Be6 {[%emt 0:00:07]} 26. Ng6+ {[%emt 0:00:08]} Kg8 {[%emt 0:00:24]} 27. Nxf8 {[%emt 0:00:09]} Kxf8 {[%emt 0:00:03]} 28. Rc1 {[%emt 0:00:28]} c6 {[%emt 0:00:12]} 29. Ra1 {[%emt 0:00:20]} Ke7 {[%emt 0:00:31]} 30. Kf2 {[%emt 0:00:50]} Kd6 {[%emt 0:00:16]} 31. Rd1+ {[%emt 0:00:22]} Kc7 {[%emt 0:00:04]} 32. Rc1 {[%emt 0:00:38]} Kd6 {[%emt 0:00:05]} 33. Ra1 {[%emt 0:00:21]} Kd5 {[%emt 0:00:13]} 34. Ra7 {[%emt 0:00:44]} Kc4 {[%emt 0:00:06]} 35. Rxb7 {[%emt 0:00:06]} b5 {[%emt 0:00:03]} 36. Ra7 {[%emt 0:00:47]} Kxb4 {[%emt 0:00:11]} 37. Ra3 {[%emt 0:00:05]} c5 {[%emt 0:00:06]} 38. g4 {[%emt 0:00:45]} c4 {[%emt 0:00:23]} 39. Ke3 {[%emt 0:00:30]} Kc5 {[%emt 0:00:17]} 40. Kd2 {[%emt 0:00:20]} Kd4 {[%emt 0:01:00]} 41. Ra8 {[%emt 0:01:35]} Bd5 {[%emt 0:01:39]} 42. Rd8 {[%emt 0:00:16]} Kc5 {[%emt 0:00:09]} 43. g3 {[%emt 0:00:21]} Bg2 {[%emt 0:00:08]} 44. h4 {[%emt 0:00:11]} Bh3 {[%emt 0:00:09]} 45. Rg8 {[%emt 0:00:25]} g6 {[%emt 0:00:29]} 46. Rg7 {[%emt 0:00:17]} Bxg4 {[%emt 0:00:13]} 47. Rxf7 {[%emt 0:00:19]} h5 {[%emt 0:00:42]} 48. Rc7+ {[%emt 0:01:07]} Kb4 {[%emt 0:00:05]} 49. Rb7 {[%emt 0:00:36]} Bf5 {[%emt 0:00:31]} 50. Rb8 {[%emt 0:00:33]} Bg4 {[%emt 0:00:30]} 51. Re8 {[%emt 0:00:31]} Kb3 {[%emt 0:00:33]} 52. Kc1 {[%emt 0:01:05]} Bf5 {[%emt 0:02:52]} 53. Re3+ {[%emt 0:00:44]} Kb4 {[%emt 0:00:11]} 54. Rc3 {[%emt 0:00:29]} Bd3 {[%emt 0:00:52]} 55. Kd2 {[%emt 0:00:37]} Bf5 {[%emt 0:00:07]} 56. Rf3 {[%emt 0:00:37]} Bg4 {[%emt 0:00:58]} 57. Ra3 {[%emt 0:00:30]} Bf5 {[%emt 0:00:09]} 58. Ke3 {[%emt 0:00:19]} Kc5 {[%emt 0:01:02]} 59. Ra7 {[%emt 0:00:39]} Kb4 {[%emt 0:00:37]} 60. Ra3 {[%emt 0:01:29]} 1/2-1/2

[Event "Croatian-ch Youth U13 2022"]
[Site "Trogir"]
[Date "2022.06.27"]
[Round "9.7"]
[White "Sosic, Zvan"]
[Black "Mimica, Matija"]
[Result "0-1"]
[ECO "B12"]
[WhiteElo "1331"]
[BlackElo "1421"]
[Annotator "NA RC"]
[PlyCount "110"]
[EventDate "2022.06.22"]
[EventType "swiss"]
[EventCountry "CRO"]
[SourceTitle "playchess.com"]
[Source "ChessBase"]
[SourceQuality "1"]
[TimeControl "5400+30"]

1. e4 {[%emt 0:00:04]} c6 {[%emt 0:00:11]} 2. d4 {[%emt 0:00:05]} d5 {[%emt 0:00:12]} 3. e5 {[%emt 0:00:05]} Bf5 {[%emt 0:00:17]} 4. g4 {[%emt 0:00:03]} Bd7 {[%emt 0:00:19]} 5. Nd2 {[%emt 0:01:06]} e6 {[%emt 0:00:20]} 6. Nb3 {[%emt 0:00:59]} c5 {[%emt 0:01:46]} 7. Be3 {[%emt 0:02:21]} Nc6 {[%emt 0:00:28]} 8. Nf3 {[%emt 0:01:16]} cxd4 {[%emt 0:01:09]} 9. Nbxd4 {[%emt 0:00:50]} Nge7 {[%emt 0:00:23]} 10. Bg5 {[%emt 0:01:37]} Qb6 {[%emt 0:02:00]} 11. Bxe7 {[%emt 0:07:20]} Bxe7 {[%emt 0:00:06]} 12. Nxc6 {[%emt 0:01:29]} bxc6 {[%emt 0:00:46]} 13. Rb1 {[%emt 0:01:27]} Bc5 {[%emt 0:01:17]} 14. Qd2 {[%emt 0:00:46]} O-O {[%emt 0:01:30]} 15. Bd3 {[%emt 0:00:33]} f6 {[%emt 0:07:33]} 16. O-O {[%emt 0:02:59]} fxe5 {[%emt 0:01:13]} 17. Nxe5 {[%emt 0:00:08]} Qc7 {[%emt 0:00:30]} 18. Rbe1 {[%emt 0:11:20]} Bd6 {[%emt 0:01:18]} 19. Qg5 {[%emt 0:03:03]} h6 {[%emt 0:08:26]} 20. Qh5 {[%emt 0:01:35]} Bxe5 {[%emt 0:01:35]} 21. Qxe5 {[%emt 0:00:02]} Qxe5 22. Rxe5 {[%emt 0:00:02]} Rf4 {[%emt 0:00:47]} 23. h3 {[%emt 0:00:42]} Raf8 {[%emt 0:00:13]} 24. Kg2 {[%emt 0:00:38]} c5 {[%emt 0:00:35]} 25. Be2 {[%emt 0:01:05]} Ra4 {[%emt 0:03:25]} 26. a3 {[%emt 0:00:29]} Rb8 {[%emt 0:00:10]} 27. Re3 {[%emt 0:10:25]} Rxb2 {[%emt 0:00:48]} 28. Bd3 {[%emt 0:03:34]} c4 {[%emt 0:01:07]} 29. Bg6 {[%emt 0:00:21]} d4 {[%emt 0:00:16]} 30. Re5 {[%emt 0:01:29]} Rxa3 {[%emt 0:01:12]} 31. Rc5 {[%emt 0:00:46]} Kf8 {[%emt 0:04:59]} 32. Rxc4 {[%emt 0:00:33]} Ra4 {[%emt 0:03:38]} 33. Rc5 {[%emt 0:04:40]} Ke7 {[%emt 0:00:50]} 34. Re1 {[%emt 0:02:05]} Rb5 {[%emt 0:01:57]} 35. Rce5 {[%emt 0:01:01]} Rxe5 {[%emt 0:00:44]} 36. Rxe5 {[%emt 0:00:11]} Kf6 {[%emt 0:00:04]} 37. f4 {[%emt 0:02:38]} Kxg6 {[%emt 0:00:10]} 38. Kg3 {[%emt 0:00:20]} Ra2 {[%emt 0:00:42]} 39. Rc5 {[%emt 0:00:39]} Kf6 {[%emt 0:03:58]} 40. Kh4 {[%emt 0:00:34]} a5 {[%emt 0:02:31]} 41. Rc4 {[%emt 0:01:26]} Ra4 {[%emt 0:05:28]} 42. Rc5 {[%emt 0:01:07]} Ke7 {[%emt 0:00:23]} 43. g5 {[%emt 0:01:09]} hxg5+ {[%emt 0:01:19]} 44. Kxg5 {[%emt 0:00:10]} Kd6 {[%emt 0:00:40]} 45. Re5 {[%emt 0:00:17]} Rc4 {[%emt 0:02:34]} 46. Rxa5 {[%emt 0:00:46]} Rc5+ {[%emt 0:01:45]} 47. Rxc5 {[%emt 0:00:17]} Kxc5 {[%emt 0:00:04]} 48. Kg6 {[%emt 0:00:20]} Kc4 {[%emt 0:00:07]} 49. Kxg7 {[%emt 0:00:09]} Kc3 {[%emt 0:01:16]} 50. h4 {[%emt 0:00:45]} Kxc2 {[%emt 0:00:13]} 51. h5 {[%emt 0:00:14]} d3 {[%emt 0:00:16]} 52. h6 {[%emt 0:00:13]} d2 {[%emt 0:00:15]} 53. h7 {[%emt 0:00:17]} d1=Q {[%emt 0:00:07]} 54. h8=Q {[%emt 0:00:03]} Qa1+ {[%emt 0:00:36]} 55. Kh7 {[%emt 0:00:49]} Qxh8+ {[%emt 0:00:22]} 0-1

[Event "Croatian-ch Youth U13 2022"]
[Site "Trogir"]
[Date "2022.06.27"]
[Round "9.8"]
[White "Puljiz, Marin"]
[Black "Perdic, Arijan"]
[Result "0-1"]
[ECO "B18"]
[WhiteElo "1296"]
[BlackElo "1149"]
[Annotator "NA RC"]
[PlyCount "90"]
[EventDate "2022.06.22"]
[EventType "swiss"]
[EventCountry "CRO"]
[SourceTitle "playchess.com"]
[Source "ChessBase"]
[SourceQuality "1"]
[TimeControl "5400+30"]

1. e4 {[%emt 0:00:02]} c6 {[%emt 0:00:05]} 2. d4 {[%emt 0:00:04]} d5 {[%emt 0:00:05]} 3. Nc3 {[%emt 0:00:06]} dxe4 {[%emt 0:00:09]} 4. Nxe4 {[%emt 0:00:06]} Bf5 {[%emt 0:00:09]} 5. Nc3 {[%emt 0:00:07]} Nf6 {[%emt 0:00:43]} 6. Nf3 {[%emt 0:00:22]} h6 {[%emt 0:00:37]} 7. Bc4 {[%emt 0:00:04]} e6 {[%emt 0:00:19]} 8. a3 {[%emt 0:00:26]} Qc7 {[%emt 0:00:30]} 9. O-O {[%emt 0:00:50]} Be7 {[%emt 0:00:56]} 10. Ne5 {[%emt 0:01:18]} Nbd7 {[%emt 0:01:35]} 11. f4 {[%emt 0:02:50]} Nb6 {[%emt 0:02:07]} 12. Bb3 {[%emt 0:01:59]} Nbd5 {[%emt 0:03:57]} 13. Bd2 {[%emt 0:06:36]} Nxc3 {[%emt 0:01:55]} 14. Bxc3 {[%emt 0:00:12]} Nd5 {[%emt 0:00:07]} 15. Qf3 {[%emt 0:04:28]} Nxc3 {[%emt 0:01:53]} 16. Qxc3 {[%emt 0:00:29]} O-O {[%emt 0:06:55]} 17. Rad1 {[%emt 0:05:19]} Rac8 {[%emt 0:01:44]} 18. g4 {[%emt 0:14:04]} Be4 {[%emt 0:02:25]} 19. Qe3 {[%emt 0:00:34]} Bh7 {[%emt 0:01:30]} 20. f5 {[%emt 0:01:33]} exf5 {[%emt 0:02:44]} 21. gxf5 {[%emt 0:00:13]} Bd6 {[%emt 0:09:18]} 22. Qf4 {[%emt 0:14:12]} Bxe5 {[%emt 0:01:24]} 23. dxe5 {[%emt 0:00:08]} c5 {[%emt 0:02:26]} 24. Bd5 {[%emt 0:01:20]} Kh8 {[%emt 0:01:20]} 25. Kh1 {[%emt 0:07:32]} f6 {[%emt 0:06:56]} 26. e6 {[%emt 0:02:28]} Qxf4 {[%emt 0:01:57]} 27. Rxf4 {[%emt 0:00:08]} Rfd8 {[%emt 0:00:13]} 28. e7 {[%emt 0:00:56]} Re8 {[%emt 0:00:11]} 29. Re1 {[%emt 0:02:08]} Rc7 {[%emt 0:00:31]} 30. Rfe4 {[%emt 0:00:41]} Bg8 {[%emt 0:05:03]} 31. Bc4 {[%emt 0:02:00]} Bxc4 {[%emt 0:01:59]} 32. Rxc4 {[%emt 0:00:06]} Kg8 {[%emt 0:00:14]} 33. b4 {[%emt 0:03:00]} b6 {[%emt 0:03:09]} 34. Kg2 {[%emt 0:04:47]} Kf7 {[%emt 0:00:43]} 35. bxc5 {[%emt 0:00:09]} Rxc5 {[%emt 0:01:04]} 36. Rxc5 {[%emt 0:00:07]} bxc5 {[%emt 0:00:11]} 37. Kf3 {[%emt 0:00:07]} Rxe7 {[%emt 0:00:54]} 38. Rxe7+ {[%emt 0:00:07]} Kxe7 {[%emt 0:00:08]} 39. Kg4 {[%emt 0:00:12]} Kd6 {[%emt 0:00:19]} 40. Kh5 {[%emt 0:00:07]} Ke5 {[%emt 0:00:16]} 41. Kg6 {[%emt 0:00:17]} h5 {[%emt 0:00:32]} 42. h4 {[%emt 0:03:15]} Kf4 {[%emt 0:01:37]} 43. a4 {[%emt 0:02:38]} Kg4 {[%emt 0:00:39]} 44. a5 {[%emt 0:02:47]} Kxh4 {[%emt 0:00:12]} 45. Kxg7 {[%emt 0:00:10]} Kg5 {[%emt 0:00:08]} 0-1

[Event "Croatian-ch Youth U13 2022"]
[Site "Trogir"]
[Date "2022.06.27"]
[Round "9.10"]
[White "Vinkovic, Hana"]
[Black "Zagorac, Lara"]
[Result "1/2-1/2"]
[ECO "B22"]
[WhiteElo "1155"]
[BlackElo "1482"]
[Annotator "NA RC"]
[PlyCount "25"]
[EventDate "2022.06.22"]
[EventType "swiss"]
[EventCountry "CRO"]
[SourceTitle "playchess.com"]
[Source "ChessBase"]
[SourceQuality "1"]
[TimeControl "5400+30"]

1. e4 {[%emt 0:00:03]} c5 {[%emt 0:00:09]} 2. c3 {[%emt 0:00:03]} d6 {[%emt 0:00:35]} 3. d4 {[%emt 0:00:08]} Nf6 {[%emt 0:02:05]} 4. Nd2 {[%emt 0:03:11]} Nc6 {[%emt 0:03:46]} 5. Ngf3 {[%emt 0:01:19]} g6 {[%emt 0:01:41]} 6. Bc4 {[%emt 0:02:53]} Bg7 {[%emt 0:05:34]} 7. O-O {[%emt 0:02:23]} O-O {[%emt 0:02:07]} 8. Re1 {[%emt 0:03:06]} Bg4 {[%emt 0:03:21]} 9. h3 {[%emt 0:03:33]} Bxf3 {[%emt 0:00:33]} 10. Nxf3 {[%emt 0:00:15]} cxd4 {[%emt 0:03:56]} 11. cxd4 {[%emt 0:01:09]} d5 {[%emt 0:00:36]} 12. exd5 {[%emt 0:01:23]} Nxd5 {[%emt 0:01:21]} 13. Be3 {[%emt 0:04:38]} 1/2-1/2

[Event "Croatian-ch Youth U13 2022"]
[Site "Trogir"]
[Date "2022.06.27"]
[Round "9.11"]
[White "Vucenovic, Diara"]
[Black "Fiolic, Ivana"]
[Result "1-0"]
[ECO "C55"]
[WhiteElo "1352"]
[BlackElo "1053"]
[Annotator "NA RC"]
[PlyCount "43"]
[EventDate "2022.06.22"]
[EventType "swiss"]
[EventCountry "CRO"]
[SourceTitle "playchess.com"]
[Source "ChessBase"]
[SourceQuality "1"]
[TimeControl "5400+30"]

1. e4 {[%emt 0:00:02]} e5 {[%emt 0:00:12]} 2. Nf3 {[%emt 0:00:08]} Nc6 {[%emt 0:00:15]} 3. Bc4 {[%emt 0:00:18]} Be7 {[%emt 0:00:26]} 4. Nc3 {[%emt 0:00:41]} Nf6 {[%emt 0:00:37]} 5. d3 {[%emt 0:00:25]} d6 {[%emt 0:00:46]} 6. h3 {[%emt 0:00:55]} O-O {[%emt 0:01:16]} 7. Be3 {[%emt 0:01:01]} b6 {[%emt 0:02:08]} 8. Bb3 {[%emt 0:17:04]} Bb7 {[%emt 0:04:03]} 9. Ne2 {[%emt 0:01:13]} h6 {[%emt 0:06:57]} 10. Ng3 {[%emt 0:01:31]} Re8 {[%emt 0:01:28]} 11. Qd2 {[%emt 0:01:14]} Bf8 {[%emt 0:02:05]} 12. O-O {[%emt 0:02:38]} Ne7 {[%emt 0:04:59]} 13. Nh2 {[%emt 0:11:00]} d5 {[%emt 0:07:08]} 14. Qe2 {[%emt 0:24:19]} Ng6 {[%emt 0:08:48]} 15. Rad1 {[%emt 0:02:52]} Ba6 {[%emt 0:01:21]} 16. Bc1 {[%emt 0:09:37]} Bc5 {[%emt 0:03:54]} 17. Kh1 {[%emt 0:05:55]} Qd6 {[%emt 0:02:29]} 18. Ng4 {[%emt 0:03:23]} dxe4 {[%emt 0:05:37]} 19. Nxf6+ {[%emt 0:00:33]} Qxf6 {[%emt 0:00:48]} 20. Nxe4 {[%emt 0:00:25]} Qe7 {[%emt 0:00:58]} 21. Qg4 {[%emt 0:01:09]} Bc8 {[%emt 0:01:39]} 22. Qxg6 {[%emt 0:00:16]} 1-0